bitfinex/quotes_ETHUSD_20241024
["timestamp","ask_amount","ask_price","bid_price","bid_amount"]
[1729782703248,3.95379,2529.3,2528.8,0.07908197]
[1729782703249,3.95368,2529.3,2528.8,0.07908197]
[1729782703583,3.95368,2529.3,2528.7,0.55]
[1729782703887,4.77228,2529.3,2528.7,4.50453]
[1729782704279,0.8186,2529.3,2528.8,7.70118726]
[1729782704479,3.95342,2529.5,2528.8,7.70118726]
[1729782704784,3.95342,2529.5,2528.8,7.70115726]
[1729782705092,0.8193,2529.6,2529.1,3.95396]
[1729782705588,0.8193,2529.6,2529.2,0.07906529]
[1729782705898,4.0775108,2529.7,2529.1,8.45776]
[1729782705899,0.1244708,2529.7,2529.1,8.45776]
[1729782706387,0.1244708,2529.7,2529.2,3.9538]
[1729782706596,0.0744708,2529.7,2529.2,3.9538]
[1729782706893,0.0744708,2529.7,2529.1,4.50388]
[1729782707068,0.0744708,2529.7,2529.2,4.84726401]
[1729782707256,4.0275308,2529.7,2529.2,0.89345401]
[1729782707456,4.0275308,2529.7,2529.1,3.55]
[1729782707856,4.0276008,2529.7,2529.1,3.55]
[1729782708280,3.95383,2529.2,2528.8,0.7618]
[1729782708459,3.9536,2529.4,2528.7,3.0]
[1729782708764,3.9536,2529.4,2528.7,6.95453]
[1729782709159,3.9536,2529.4,2528.8,0.07907354]
[1729782709360,3.9536,2529.4,2528.8,7.70126366]
[1729782709758,3.9536,2529.4,2528.8,3.66776012]
[1729782709979,4.39739031,2529.3,2528.8,0.55]
[1729782710385,4.39734031,2529.3,2528.8,0.55]
[1729782710699,0.7955,2529.6,2528.8,0.55]
[1729782710700,0.7955,2529.6,2528.8,4.21776012]
[1729782710860,4.74874,2529.6,2529.1,0.7618]
[1729782711060,0.7955,2529.6,2529.1,0.7618]
[1729782711273,0.7955,2529.6,2529.2,0.07906581]
[1729782711500,0.7955,2529.6,2529.2,3.95381]
[1729782711705,0.0744708,2529.7,2529.2,5.48755201]
[1729782711870,0.0744708,2529.7,2529.3,0.07906131]
[1729782712075,4.0275108,2529.7,2529.2,1.53374201]
[1729782712277,0.0744708,2529.7,2529.2,1.53374201]
[1729782712893,4.0275608,2529.7,2529.2,1.53374201]
[1729782713313,0.0744708,2529.7,2529.2,1.53374201]
[1729782713477,0.0744708,2529.7,2529.3,0.07906153]
[1729782713823,4.0275208,2529.7,2529.2,1.53374201]
[1729782714308,0.0744708,2529.7,2529.5,3.95322]
[1729782714519,0.0744708,2529.7,2529.6,0.55]
[1729782714878,0.0744708,2529.7,2529.6,4.50319]
[1729782715098,0.0744708,2529.7,2529.6,0.55]
[1729782715289,0.0744708,2529.7,2529.6,1.44647901]
[1729782715488,0.0744708,2529.7,2529.6,5.39966901]
[1729782715715,0.0744708,2529.7,2529.6,5.47871511]
[1729782716008,0.0744708,2529.7,2529.6,8.39966901]
[1729782719014,0.0744708,2529.7,2529.6,12.06742913]
[1729782719524,0.0744708,2529.7,2529.6,12.86882913]
[1729782720416,0.0744708,2529.7,2529.6,0.55]
[1729782720923,0.0744708,2529.7,2529.5,3.95326]
[1729782721086,0.0744708,2529.7,2529.5,7.90651]
[1729782722009,0.0744708,2529.7,2529.6,4.0322393]
[1729782722195,0.0744708,2529.7,2529.6,11.24999942]
[1729782722383,0.0744708,2529.7,2529.6,13.49677506]
[1729782723327,0.0744708,2529.7,2529.6,4.3555]
[1729782723628,0.0744708,2529.7,2529.4,8.30899]
[1729782724204,0.0744708,2529.7,2529.4,4.3555]
[1729782724408,0.0744708,2529.7,2529.6,0.55]
[1729782725427,0.0744708,2529.7,2529.3,3.0]
[1729782725627,0.0744708,2529.7,2529.4,0.07905946]
[1729782725786,0.0744708,2529.7,2529.4,3.07905946]
[1729782725986,0.0744708,2529.7,2529.4,6.95348]
[1729782726288,0.0744708,2529.7,2529.3,4.15256818]
[1729782726487,4.0275208,2529.7,2529.4,0.78203283]
[1729782726727,0.0744708,2529.7,2529.4,0.78203283]
[1729782727419,0.0744708,2529.7,2529.2,3.66776012]
[1729782727420,0.7825,2529.6,2529.2,3.0]
[1729782727627,3.95343,2529.5,2529.1,4.0343818]
[1729782727986,3.95343,2529.5,2528.5,0.01]
[1729782727987,3.95374,2529.3,2528.7,0.7552]
[1729782728284,4.73582,2529.6,2528.8,0.07907334]
[1729782728285,3.95352,2529.4,2528.8,0.07907334]
[1729782728514,3.95372,2529.3,2528.7,0.7552]
[1729782728837,3.95352,2529.4,2528.3,0.7799]
[1729782728838,3.95416,2529.0,2528.3,0.7799]
[1729782729317,3.95404,2529.1,2528.3,0.7799]
[1729782729484,4.76102,2529.2,2528.4,3.7468419]
[1729782729688,3.954,2529.1,2528.4,1.64715037]
[1729782730212,3.95414,2529.0,2528.5,0.07908339]
[1729782730909,3.95399,2529.1,2528.5,0.07908339]
[1729782731697,0.8072,2529.2,2528.6,0.55]
[1729782731901,0.473602,2529.4,2528.8,0.55]
[1729782731902,0.8,2529.4,2528.8,0.55]
[1729782732414,0.8,2529.4,2528.9,0.07907185]
[1729782732734,0.8,2529.6,2529.1,0.8207]
[1729782734186,4.7532,2529.6,2529.1,0.8207]
[1729782734390,0.8,2529.6,2529.1,0.8207]
[1729782734999,4.75331,2529.6,2529.0,0.55]
[1729782735210,3.95342,2529.5,2529.1,0.07906882]
[1729782735420,5.23608808,2529.6,2529.0,0.55]
[1729782735604,5.23606808,2529.6,2529.0,0.55]
[1729782735809,3.95336,2529.5,2529.0,0.55]
[1729782736323,5.23606808,2529.6,2529.1,0.07906964]
[1729782736528,5.23606808,2529.6,2529.0,0.07906998]
[1729782737404,4.75329,2529.6,2529.0,0.07906998]
[1729782737602,0.8,2529.6,2529.0,0.07906998]
[1729782738990,3.95405,2529.1,2528.5,0.8037]
[1729782739423,3.95377,2529.3,2528.6,0.07908486]
[1729782739633,4.71711,2529.4,2528.6,0.07908486]
[1729782739790,3.95374,2529.3,2528.6,0.92962036]
[1729782739990,7.69542092,2529.7,2528.5,0.8037]
[1729782739991,3.95408,2529.1,2528.5,0.8037]
[1729782740197,3.95421,2529.0,2528.3,0.88278104]
[1729782740428,3.95397,2529.1,2528.3,3.88278104]
[1729782740590,0.7636,2529.2,2528.5,3.0]
[1729782740791,4.71751,2529.2,2528.6,0.07908194]
[1729782741027,0.7704,2529.1,2528.6,0.07908194]
[1729782741227,3.95421,2529.0,2528.3,7.75892]
[1729782741417,3.95421,2529.0,2528.4,0.07908585]
[1729782742030,3.95445,2528.8,2528.4,0.07908585]
[1729782742231,3.95445,2528.8,2528.3,3.8037]
[1729782742524,3.95445,2528.8,2528.4,0.07909155]
[1729782743496,3.95423,2529.0,2528.4,0.07909155]
[1729782743698,3.95435,2528.9,2528.4,0.07909155]
[1729782744299,3.95423,2529.0,2528.4,0.07909155]
[1729782744498,0.7704,2529.1,2528.4,4.03415155]
[1729782744699,0.7704,2529.1,2528.4,5.6952767]
[1729782744700,4.72437,2529.1,2528.4,5.6952767]
[1729782744927,0.7704,2529.1,2528.4,5.6952767]
[1729782745337,0.7795,2529.3,2528.6,0.55]
[1729782745627,7.90775,2529.2,2528.7,0.0790803]
[1729782745803,3.95384,2529.2,2528.6,0.55]
[1729782746203,0.7795,2529.3,2528.6,0.55]
[1729782746428,3.95351,2529.4,2528.7,4.79967031]
[1729782746640,8.71923,2529.5,2528.8,0.55]
[1729782746943,3.95328,2529.6,2528.8,5.30082]
[1729782747451,3.95359,2529.4,2528.8,4.3464]
[1729782747732,0.790708,2529.4,2528.8,0.7964]
[1729782748098,3.9536,2529.4,2528.8,0.7964]
[1729782749405,3.95333,2529.6,2528.9,0.07907538]
[1729782749629,8.50775092,2529.7,2528.9,0.07907538]
[1729782749934,3.95341,2529.5,2528.9,0.07907538]
[1729782750132,3.95341,2529.5,2528.8,0.7964]
[1729782750333,3.95366,2529.3,2528.8,0.7964]
[1729782750710,3.95359,2529.4,2528.8,0.7964]
[1729782750909,3.95374,2529.3,2528.8,3.7964]
[1729782751106,4.76559,2529.2,2528.8,0.7964]
[1729782751623,4.76559,2529.2,2528.6,3.0]
[1729782751624,0.8117,2529.2,2528.6,3.8119]
[1729782751805,0.8117,2529.2,2528.6,5.15016552]
[1729782752019,3.95397,2529.1,2528.6,0.8119]
[1729782754007,0.8117,2529.2,2528.6,0.89098545]
[1729782754443,3.95379,2529.3,2528.6,0.89098545]
[1729782754735,3.95379,2529.3,2528.6,0.8119]
[1729782754936,3.95391,2529.2,2528.6,0.8119]
[1729782755300,3.95419,2529.0,2528.6,0.8119]
[1729782755501,3.954,2529.1,2528.6,0.8119]
[1729782755801,3.95414,2529.0,2528.6,0.8119]
[1729782756302,3.954,2529.1,2528.6,0.8119]
[1729782757555,7.90807,2529.1,2528.6,0.8119]
[1729782757712,3.954,2529.1,2528.6,0.8119]
[1729782758231,3.95379,2529.3,2528.6,1.29650492]
[1729782758436,4.75242,2529.4,2528.7,4.03366675]
[1729782759454,0.7989,2529.4,2528.8,3.95439]
[1729782759623,7.69536092,2529.7,2528.9,4.85157475]
[1729782759624,3.95326,2529.6,2528.9,4.85157475]
[1729782759824,3.95326,2529.6,2528.9,6.09894724]
[1729782760506,0.8451708,2529.7,2529.0,3.95412]
[1729782760792,0.8451708,2529.7,2528.9,2.14474724]
[1729782760793,0.0744708,2529.7,2529.2,0.7857]
[1729782761081,4.0276308,2529.7,2529.2,0.7857]
[1729782761242,0.0744708,2529.7,2529.2,0.7857]
[1729782761579,0.0744708,2529.7,2529.4,3.95343]
[1729782761790,0.0744708,2529.7,2529.5,0.07905741]
[1729782761967,0.0744708,2529.7,2529.6,0.8057]
[1729782763654,0.0744708,2529.7,2529.6,4.83794513]
[1729782763987,0.0744708,2529.7,2529.6,5.38794513]
[1729782764186,0.0744708,2529.7,2529.6,6.32206664]
[1729782764684,0.0744708,2529.7,2529.6,6.24301151]
[1729782764843,0.0744708,2529.7,2529.6,2.28982151]
[1729782765480,0.0744708,2529.7,2529.6,5.30889]
[1729782765977,0.0744708,2529.7,2529.6,0.8057]
[1729782766182,0.0744708,2529.7,2529.4,0.8259]
[1729782767369,4.0275108,2529.7,2529.2,0.8189]
[1729782767570,3.95327,2529.6,2529.2,0.8189]
[1729782768563,4.0275108,2529.7,2529.2,0.8189]
[1729782769782,0.0744708,2529.7,2529.2,0.8189]
[1729782769963,0.0744708,2529.7,2529.2,1.3040939]
[1729782770162,0.0744708,2529.7,2529.2,1.38315968]
[1729782770393,0.0744708,2529.7,2529.2,5.33687968]
[1729782770763,0.0744708,2529.7,2529.2,1.3040939]
[1729782770764,4.0275208,2529.7,2529.2,1.3040939]
[1729782770996,4.0275208,2529.7,2529.2,5.2578939]
[1729782770997,0.0744708,2529.7,2529.2,5.2578939]
[1729782772402,0.0744708,2529.7,2529.2,1.3040939]
[1729782772760,4.0275108,2529.7,2529.2,1.3040939]
[1729782773370,4.0275108,2529.7,2529.2,0.8189]
[1729782773777,3.9532,2529.6,2529.2,0.8189]
[1729782773998,3.95343,2529.5,2529.2,0.8189]
[1729782775084,3.95364,2529.4,2529.0,0.84467281]
[1729782775286,4.429814,2529.4,2528.8,0.7656]
[1729782775546,3.95374,2529.3,2528.8,0.7656]
[1729782776414,3.95363,2529.4,2528.8,0.7656]
[1729782776622,0.8084,2529.6,2528.8,0.7656]
[1729782776623,4.76166,2529.6,2528.9,3.95425]
[1729782776819,3.95346,2529.5,2528.8,0.7656]
[1729782777144,3.95346,2529.5,2528.8,1.537625]
[1729782777145,3.95366,2529.3,2528.8,1.537625]
[1729782777639,3.95374,2529.3,2528.8,1.537625]
[1729782779508,3.9539,2529.2,2528.8,1.537625]
[1729782779812,3.95374,2529.3,2528.8,1.537625]
[1729782780012,3.95374,2529.3,2528.8,0.7656]
[1729782780235,3.95345,2529.5,2528.8,0.7656]
[1729782780458,4.76165,2529.6,2528.9,4.03333128]
[1729782780608,4.76165,2529.6,2528.9,3.95425]
[1729782780813,0.0744708,2529.7,2529.2,3.95372]
[1729782781013,0.0744708,2529.7,2529.3,0.474672]
[1729782781222,0.0744708,2529.7,2529.1,0.793]
[1729782781223,4.0275208,2529.7,2529.1,4.74695]
[1729782781452,4.0275208,2529.7,2529.1,0.793]
[1729782781720,0.0744708,2529.7,2529.1,0.8720704]
[1729782781910,4.0275808,2529.7,2529.1,4.74697]
[1729782782342,0.0744708,2529.7,2529.2,4.03281698]
[1729782782652,0.0744708,2529.7,2529.4,0.793]
[1729782783258,0.0744708,2529.7,2529.5,3.95328]
[1729782783627,0.0744708,2529.7,2529.6,4.50319]
[1729782783951,0.0744708,2529.7,2529.6,0.8117]
[1729782787014,0.0744708,2529.7,2529.6,4.76489]
[1729782787212,0.0744708,2529.7,2529.6,1.683523]
[1729782788145,0.0744708,2529.7,2529.6,1.76257856]
[1729782789030,0.0744708,2529.7,2529.6,1.683523]
[1729782789837,0.0744708,2529.7,2529.6,5.71576861]
[1729782790052,0.0744708,2529.7,2529.6,5.636713]
[1729782790354,0.0744708,2529.7,2529.6,9.186713]
[1729782791053,0.0744708,2529.7,2529.6,8.636713]
[1729782791226,0.0744708,2529.7,2529.6,9.186713]
[1729782791931,0.0744708,2529.7,2529.6,4.683523]
[1729782792130,0.0744708,2529.7,2529.6,0.8117]
[1729782792430,0.0744708,2529.7,2529.4,0.754]
[1729782792855,0.0744708,2529.7,2529.4,4.70748]
[1729782793915,0.0744708,2529.7,2529.4,0.754]
[1729782795338,0.0744708,2529.7,2529.4,0.83306128]
[1729782795605,0.0744708,2529.7,2529.4,4.78653128]
[1729782795737,0.0744708,2529.7,2529.5,0.87400413]
[1729782796078,0.0744708,2529.7,2529.5,4.82733413]
[1729782796281,0.0744708,2529.7,2529.6,3.95319]
[1729782796575,0.0744708,2529.7,2529.6,5.26399]
[1729782796749,0.0744708,2529.7,2529.6,1.3108]
[1729782796952,0.0744708,2529.7,2529.6,6.27312541]
[1729782797837,0.0744708,2529.7,2529.6,6.35217579]
[1729782798063,0.0744708,2529.7,2529.6,6.27312541]
[1729782798284,0.0744708,2529.7,2529.6,6.35217581]
[1729782798804,0.0744708,2529.7,2529.6,9.35217581]
[1729782799114,0.0744708,2529.7,2529.6,9.27312541]
[1729782802010,0.0744708,2529.7,2529.6,9.29312541]
[1729782802308,0.0744708,2529.7,2529.6,11.88854382]
[1729782802462,0.8227,2530.9,2530.4,3.95187]
[1729782802804,4.77386,2530.9,2530.4,1.166587]
[1729782803405,3.95134,2530.8,2530.2,3.95216]
[1729782803570,3.90134,2530.8,2530.2,3.0]
[1729782803899,3.95149,2530.7,2530.2,3.0]
[1729782804112,3.90134,2530.8,2530.2,3.95224]
[1729782804468,3.90134,2530.8,2530.3,0.07903283]
[1729782804664,3.90134,2530.8,2530.1,7.72378]
[1729782804906,3.90134,2530.8,2530.2,1.24665383]
[1729782805110,0.8227,2530.9,2530.3,4.50202]
[1729782805311,0.8227,2530.9,2530.4,3.95187]
[1729782805469,0.8227,2530.9,2530.5,0.8252]
[1729782805684,0.8227,2530.9,2530.3,4.50202]
[1729782805884,0.8227,2530.9,2530.4,0.8669641]
[1729782806629,0.8227,2530.9,2530.1,0.7831]
[1729782806786,0.8227,2530.9,2530.2,3.0]
[1729782806986,7.90316,2530.7,2530.1,3.86213683]
[1729782807688,3.95156,2530.7,2530.1,3.86213683]
[1729782807884,3.95156,2530.7,2530.1,7.81450683]
[1729782808122,3.95156,2530.7,2530.1,8.91216968]
[1729782808518,7.90317,2530.7,2530.1,4.95979968]
[1729782808719,4.75157,2530.5,2530.0,0.55]
[1729782809091,4.75157,2530.5,2529.9,3.8225]
[1729782809290,3.95198,2530.4,2529.9,3.8225]
[1729782809789,4.75157,2530.5,2529.9,7.85422603]
[1729782809790,4.75149,2530.5,2529.9,7.85422603]
[1729782810010,4.75149,2530.5,2530.0,0.07904259]
[1729782810212,4.75149,2530.5,2529.9,7.77518]
[1729782810932,4.75149,2530.5,2530.0,0.0790426]
[1729782811503,4.75149,2530.5,2529.9,7.77518]
[1729782811696,4.75149,2530.5,2529.9,8.947978]
[1729782812096,8.70341,2530.5,2529.9,4.995298]
[1729782812695,4.75149,2530.5,2529.9,4.995298]
[1729782812921,4.75149,2530.5,2529.9,8.947918]
[1729782813274,8.70336,2530.5,2529.9,8.947918]
[1729782813387,8.70336,2530.5,2529.7,0.8178]
[1729782813388,4.75154,2530.5,2529.7,0.8178]
[1729782813592,3.95204,2530.4,2529.7,4.77075]
[1729782813824,0.7997,2530.5,2529.7,0.8178]
[1729782813825,3.95226,2530.2,2529.7,0.8178]
[1729782814150,0.7995,2530.1,2529.7,0.8178]
[1729782814428,0.7995,2530.1,2529.7,4.69580954]
[1729782816326,4.72112,2530.3,2529.7,8.72788277]
[1729782816529,0.769,2530.3,2529.8,4.03191105]
[1729782816734,0.769,2530.3,2529.8,0.07905105]
[1729782816901,4.72079,2530.5,2529.9,3.95272]
[1729782818330,4.72079,2530.5,2529.9,4.03169511]
[1729782818532,0.769,2530.5,2530.0,3.95256]
[1729782818904,0.769,2530.5,2530.0,4.03151392]
[1729782819135,4.72049,2530.7,2530.1,4.74381]
[1729782819444,4.72049,2530.7,2530.1,5.22609539]
[1729782820544,0.769,2530.7,2530.2,3.95224]
[1729782820705,0.769,2530.7,2530.2,4.03127512]
[1729782820905,0.769,2530.7,2530.1,5.22609539]
[1729782820906,4.72048,2530.7,2530.1,5.22609539]
[1729782821149,4.67048,2530.7,2530.1,5.22609539]
[1729782821436,4.67048,2530.7,2530.2,0.52260954]
[1729782822040,4.67048,2530.7,2530.2,4.47484954]
[1729782822610,4.67048,2530.7,2530.2,0.52260954]
[1729782822834,4.67048,2530.7,2530.1,4.74373]
[1729782823147,0.719,2530.7,2530.2,3.95217]
[1729782823441,4.67052,2530.7,2530.1,4.74373]
[1729782823608,4.67052,2530.7,2530.1,8.69604]
[1729782823808,0.719,2530.7,2530.1,8.69602]
[1729782824044,4.67048,2530.7,2530.2,0.869602]
[1729782824242,4.67048,2530.7,2530.2,4.821852]
[1729782824740,4.67048,2530.7,2530.2,0.869602]
[1729782825240,4.67048,2530.7,2530.2,4.821832]
[1729782826952,4.67048,2530.7,2530.2,0.869602]
[1729782828313,4.67048,2530.7,2530.2,4.90085719]
[1729782828714,4.67048,2530.7,2530.2,4.821822]
[1729782829157,8.62207,2530.7,2530.2,0.869602]
[1729782829451,4.67048,2530.7,2530.2,0.869602]
[1729782829811,4.76659,2531.0,2530.5,0.7509]
[1729782830034,3.95088,2531.1,2530.6,3.95162]
[1729782830233,3.95051,2531.4,2530.7,1.3009]
[1729782830522,3.90051,2531.4,2530.9,3.95109]
[1729782833549,3.95065,2531.3,2530.8,0.4379928]
[1729782833782,3.95077,2531.2,2530.7,9.20374]
[1729782834080,4.76586,2531.5,2530.8,3.9513]
[1729782834081,3.95056,2531.3,2530.8,3.9513]
[1729782834535,4.76586,2531.5,2530.9,0.55]
[1729782834740,4.76586,2531.5,2531.0,3.95092]
[1729782835657,3.95036,2531.5,2531.1,0.7712]
[1729782835862,3.95034,2531.5,2531.1,0.7712]
[1729782836176,3.95038,2531.4,2531.1,0.7712]
[1729782836338,3.95038,2531.4,2531.0,3.95099]
[1729782836538,3.95038,2531.4,2531.0,4.820069]
[1729782836975,3.95032,2531.5,2531.0,4.820069]
[1729782837177,3.95038,2531.4,2531.0,0.869079]
[1729782837382,3.95056,2531.3,2530.9,0.7886]
[1729782837541,3.95056,2531.3,2530.8,3.9512]
[1729782837542,4.71596,2531.3,2530.8,3.9512]
[1729782838187,3.24394443,2532.2,2531.2,3.95069]
[1729782838338,3.94971,2531.9,2531.4,4.75971]
[1729782838545,3.9504,2531.4,2531.1,0.8094]
[1729782838865,3.95002,2531.7,2531.1,0.8094]
[1729782839038,4.71524,2531.8,2531.2,3.9506]
[1729782839242,0.7654,2531.8,2531.3,4.821543]
[1729782839450,0.7154,2531.8,2531.3,8.771993]
[1729782839651,4.6652,2531.8,2531.3,4.821533]
[1729782839884,3.94991,2531.7,2531.3,0.871083]
[1729782840202,7.89993,2531.7,2531.3,0.871083]
[1729782840483,3.95025,2531.5,2531.1,0.8094]
[1729782841778,3.95025,2531.5,2531.1,4.76022]
[1729782842080,3.95025,2531.5,2531.1,0.8094]
[1729782842788,3.95025,2531.5,2531.1,4.76023]
[1729782842986,3.95025,2531.5,2531.1,5.631341]
[1729782843191,3.95002,2531.7,2531.2,3.95067]
[1729782843491,3.95002,2531.7,2531.1,5.631341]
[1729782843492,3.95015,2531.6,2531.1,5.631341]
[1729782843687,3.95015,2531.6,2531.1,5.631291]
[1729782843891,3.95015,2531.6,2531.2,3.95068]
[1729782845358,4.66522,2531.8,2531.3,3.95045]
[1729782845553,4.66522,2531.8,2531.3,3.95044]
[1729782845756,4.66522,2531.8,2531.4,3.95036]
[1729782846450,4.0935008,2532.3,2532.0,3.94941]
[1729782846451,0.1244708,2532.3,2532.0,3.94941]
[1729782847157,0.1244708,2532.3,2532.0,3.94934]
[1729782847351,0.1244708,2532.3,2532.2,11.44959012]
[1729782847792,0.1244708,2532.3,2532.2,7.78183]
[1729782849852,0.1244708,2532.3,2532.2,0.8327]
[1729782850058,0.1244708,2532.3,2532.2,4.78183]
[1729782850353,0.1244708,2532.3,2532.0,4.79442001]
[1729782850554,0.1244708,2532.3,2532.1,1.254001]
[1729782851374,0.1244708,2532.3,2531.9,0.7961]
[1729782851889,0.1244708,2532.3,2532.0,3.94933]
[1729782852096,0.1244708,2532.3,2532.0,3.66776012]
[1729782852254,0.1244708,2532.3,2532.2,3.94913]
[1729782852454,0.1244708,2532.3,2532.2,11.44719012]
[1729782852794,0.0744708,2532.3,2532.2,12.94473317]
[1729782853300,0.0744708,2532.3,2532.2,9.27697305]
[1729782853703,0.0744708,2532.3,2532.2,5.37784305]
[1729782853910,0.0744708,2532.3,2532.2,0.8303]
[1729782854195,0.0744708,2532.3,2531.3,0.26390192]
[1729782854196,4.0234608,2532.3,2531.9,0.8053]
[1729782854490,4.8347608,2532.3,2531.9,0.8053]
[1729782854701,4.8347608,2532.3,2531.7,3.94984]
[1729782854905,0.8857708,2532.3,2531.7,1.93176301]
[1729782855060,0.0744708,2532.3,2531.8,4.02865717]
[1729782855265,4.0234908,2532.3,2531.8,3.94967]
[1729782855888,0.0744708,2532.3,2532.1,3.94917]
[1729782856078,0.0744708,2532.3,2532.1,4.71697]
[1729782856279,0.0744708,2532.3,2532.1,8.66617]
[1729782856474,0.0744708,2532.3,2532.2,5.18252301]
[1729782856680,0.0744708,2532.3,2532.2,5.26149815]
[1729782856905,0.0744708,2532.3,2532.2,5.18252301]
[1729782857080,0.0744708,2532.3,2532.2,3.94913]
[1729782857493,0.0744708,2532.3,2532.1,4.71707]
[1729782858501,0.0744708,2532.3,2532.1,0.7678]
[1729782861408,0.0744708,2532.3,2532.1,4.71706]
[1729782861579,0.0744708,2532.3,2532.1,0.7678]
[1729782862307,0.0744708,2532.3,2532.1,1.64234595]
[1729782863495,0.0744708,2532.3,2532.1,5.59160595]
[1729782863694,0.0744708,2532.3,2532.1,5.59147595]
[1729782863920,0.0744708,2532.3,2532.1,0.87454595]
[1729782864212,0.0744708,2532.3,2531.9,7.76979]
[1729782864783,0.0744708,2532.3,2532.0,3.94936]
[1729782864982,0.0744708,2532.3,2531.9,3.89928262]
[1729782865188,0.0744708,2532.3,2532.1,3.94923]
[1729782865377,0.0744708,2532.3,2532.1,5.12902526]
[1729782865779,0.0744708,2532.3,2532.0,3.94944]
[1729782866114,0.0744708,2532.3,2531.9,0.8203]
[1729782866300,4.0234608,2532.3,2531.9,3.0]
[1729782866506,4.0234608,2532.3,2531.8,3.94974]
[1729782866873,4.0234608,2532.3,2531.8,3.0]
[1729782867089,3.94921,2532.2,2531.7,3.7723]
[1729782867419,3.94921,2532.2,2531.7,4.544533]
[1729782867603,4.0234708,2532.3,2531.7,8.494443]
[1729782867975,4.0234708,2532.3,2531.8,3.94969]
[1729782868414,3.94922,2532.2,2531.7,8.494443]
[1729782869213,0.0744708,2532.3,2531.7,8.494443]
[1729782869419,4.0234708,2532.3,2531.8,4.7991843]
[1729782869617,3.94916,2532.2,2531.8,0.8494443]
[1729782870121,4.0234708,2532.3,2532.2,3.94913]
[1729782870122,0.0744708,2532.3,2532.2,3.94913]
[1729782870290,0.0744708,2532.3,2532.2,4.814262]
[1729782870983,0.0744708,2532.3,2532.2,0.865132]
[1729782871184,0.0744708,2532.3,2532.1,3.94927]
[1729782871725,0.8400708,2532.3,2532.1,3.94927]
[1729782872221,0.0744708,2532.3,2532.1,3.94927]
[1729782872979,0.0744708,2532.3,2532.0,3.94939]
[1729782873724,0.0744708,2532.3,2531.5,0.7594]
[1729782873725,4.47536012,2532.2,2531.5,0.7594]
[1729782873901,3.94976,2531.8,2531.2,3.95056]
[1729782874221,0.45498309,2532.1,2531.4,3.95035]
[1729782874222,3.94961,2531.9,2531.4,3.95035]
[1729782874726,3.94977,2531.8,2531.3,3.95046]
[1729782874895,4.77347,2531.8,2531.3,3.95046]
[1729782875087,0.8237,2531.8,2531.3,4.816507]
[1729782875283,0.8237,2531.8,2531.4,3.95031]
[1729782875604,4.77353,2531.8,2531.2,6.95062]
[1729782876006,3.94991,2531.7,2531.2,6.95062]
[1729782876396,3.95014,2531.6,2531.1,0.7594]
[1729782876933,3.95014,2531.6,2531.1,4.71018]
[1729782877431,0.8237,2531.8,2531.2,3.95069]
[1729782877432,3.94992,2531.7,2531.2,3.95069]
[1729782877634,4.77352,2531.8,2531.2,3.95069]
[1729782877921,3.94991,2531.7,2531.2,4.421699]
[1729782878090,3.94991,2531.7,2531.2,3.95069]
[1729782880725,4.77348,2531.8,2531.2,3.9506]
[1729782880889,3.94992,2531.7,2531.2,3.9506]
[1729782881088,3.94992,2531.7,2531.1,4.78923638]
[1729782881289,3.94992,2531.7,2531.1,4.71023]
[1729782881600,3.94992,2531.7,2531.2,3.95067]
[1729782881795,3.95011,2531.6,2531.1,5.94312401]
[1729782882013,0.8237,2531.8,2531.1,5.94312401]
[1729782882213,0.8237,2531.8,2531.1,4.71015]
[1729782882214,3.94993,2531.7,2531.1,4.71015]
[1729782882415,3.94993,2531.7,2531.1,0.7594]
[1729782882616,3.95014,2531.6,2531.1,0.7594]
[1729782883488,3.95014,2531.6,2531.1,4.71021]
[1729782883688,3.95014,2531.6,2531.1,0.7594]
[1729782884310,3.95014,2531.6,2531.1,4.71023]
[1729782885636,4.822517,2531.6,2531.1,4.71023]
[1729782886298,3.95025,2531.5,2531.0,3.95093]
[1729782886625,8.772607,2531.6,2531.0,3.95089]
[1729782886929,3.95007,2531.6,2531.0,7.90181]
[1729782887120,3.95007,2531.6,2531.0,3.95089]
[1729782887611,3.95007,2531.6,2531.0,7.9018]
[1729782887923,3.95027,2531.5,2531.0,3.95089]
[1729782888828,3.95007,2531.6,2531.0,3.95089]
[1729782889670,7.90022,2531.6,2531.0,3.95089]
[1729782890051,0.8237,2531.8,2530.9,0.8045]
[1729782890052,4.71729,2531.4,2530.9,0.8045]
[1729782890251,0.7668,2531.4,2530.9,0.8045]
[1729782890423,3.67776012,2532.0,2530.9,0.8045]
[1729782890424,3.95,2531.7,2531.1,3.95078]
[1729782890630,3.95,2531.7,2531.1,0.87852042]
[1729782890830,3.95011,2531.6,2531.1,4.82936042]
[1729782891137,3.95,2531.7,2531.1,4.82936042]
[1729782891334,0.7668,2531.8,2531.3,4.77811]
[1729782891524,4.71631,2532.0,2531.4,3.95025]
[1729782891925,3.94963,2531.9,2531.4,3.95025]
[1729782892172,4.71631,2532.0,2531.4,3.95025]
[1729782892173,8.6659,2532.0,2531.4,3.95025]
[1729782892373,8.6659,2532.0,2531.3,4.77811]
[1729782892374,0.7668,2532.0,2531.3,4.77811]
[1729782892552,3.94979,2531.8,2531.3,4.77811]
[1729782892951,3.94992,2531.7,2531.3,0.8276]
[1729782893151,3.94992,2531.7,2531.2,6.95066]
[1729782893152,3.94991,2531.7,2531.2,3.0]
[1729782893848,3.95008,2531.6,2531.2,3.0]
[1729782894051,3.94991,2531.7,2531.2,3.0]
[1729782894670,3.94972,2531.9,2531.2,3.0]
[1729782894864,5.15977601,2532.0,2531.2,6.95065]
[1729782895075,5.15977601,2532.0,2531.4,0.8132]
[1729782895076,3.94967,2531.9,2531.4,0.8132]
[1729782895385,3.94976,2531.8,2531.4,0.8132]
[1729782895754,3.94967,2531.9,2531.4,0.8132]
[1729782896381,3.94976,2531.8,2531.3,3.95046]
[1729782896682,3.94976,2531.8,2531.2,7.78176]